fUST/lending_fUST_20250626
["ID","MTS","AMOUNT","RATE_DAILY","PERIOD"]
[367751362,1750915847011,-170.727745,0.00020921,2]
[367751364,1750915847020,-1733.23535126,0.00020922,2]
[367751365,1750915847030,-418.47240684,0.00020934,4]
[367751367,1750915847039,-500.0,0.00020958,15]
[367751369,1750915847048,-215.0738,0.00020975,2]
[367751371,1750915847057,-151.0,0.00020981,2]
[367751373,1750915847066,-151.0,0.00020981,2]
[367751375,1750915847075,-151.0,0.00020981,2]
[367751377,1750915847084,-297.757149,0.00020981,2]
[367751379,1750915847093,-151.0,0.00020981,2]
[367751381,1750915847103,-163.491278,0.00020981,2]
[367751382,1750915847112,-151.0,0.00020981,2]
[367751384,1750915847121,-151.0,0.00020981,2]
[367751386,1750915847130,-151.0,0.00020981,2]
[367751388,1750915847139,-151.0,0.00020981,2]
[367751390,1750915847148,-899.205752,0.00020981,2]
[367751392,1750915847157,-899.205752,0.00020981,2]
[367751394,1750915847166,-151.0,0.00020981,2]
[367751395,1750915847175,-151.0,0.00020981,2]
[367751397,1750915847184,-151.0,0.00020981,2]
[367751399,1750915847193,-151.0,0.00020981,2]
[367751401,1750915847203,-151.0,0.00020981,2]
[367751403,1750915847211,-151.0,0.00020981,2]
[367751405,1750915847221,-151.0,0.00020981,2]
[367751407,1750915847230,-244.41593,0.00020981,2]
[367751408,1750915847239,-244.41593,0.00020981,2]
[367751410,1750915847248,-151.0,0.00020981,2]
[367751412,1750915847257,-151.0,0.00020981,2]
[367751424,1750915847375,-151.0,0.00020981,2]
[367751426,1750915847384,-151.0,0.00020981,2]
[367751427,1750915847394,-641.104482,0.00020981,2]
[367751429,1750915847404,-641.104482,0.00020981,2]
[367751431,1750915847413,-1261.79,0.00020995,2]
[367751433,1750915847422,-49401.28142288,0.00021,2]
[367751438,1750915847465,-19784.25625816,0.00021,2]
[367751848,1750915887053,2600.0,0.000161,2]
[367751852,1750915985126,318.858079,0.00013699,2]
[367751855,1750916598124,1561.34,0.00024,120]
[367751856,1750916623820,24900.0,0.00015703,2]
[367751900,1750917032073,-157.6191751,0.00016595,2]
[367751902,1750917032083,-345.98871275,0.00016673,2]
[367751905,1750917032101,-300.0,0.00016693,2]
[367751908,1750917032112,-460.0,0.00016694,2]
[367751910,1750917032121,-464.73219916,0.00016694,2]
[367751912,1750917032131,-158.42693786,0.00016694,2]
[367751914,1750917032148,-301.57306214,0.00016694,2]
[367751916,1750917032158,-465.6508399,0.00016694,2]
[367751918,1750917032167,-448.0,0.00016694,2]
[367751921,1750917032176,-464.17264325,0.00016694,2]
[367751923,1750917032186,-460.0,0.00016694,2]
[367751925,1750917032195,-460.0,0.00016694,2]
[367751927,1750917032204,-470.29231926,0.00016694,2]
[367751929,1750917032214,-502.93358091,0.00016694,2]
[367751931,1750917032223,-460.0,0.00016694,2]
[367751933,1750917032232,-404.11422006,0.00016694,2]
[367751935,1750917032244,-460.0,0.00016694,2]
[367751937,1750917032254,-460.0,0.00016694,2]
[367751938,1750917032263,-404.11399578,0.00016694,2]
[367751940,1750917032272,-485.10841771,0.00016694,2]
[367751942,1750917032282,-481.45359119,0.00016694,2]
[367751943,1750917032291,-441.46084496,0.00016694,2]
[367751944,1750917032300,-484.1776623,0.00016694,2]
[367751945,1750917032309,-460.0,0.00016694,2]
[367751946,1750917032319,-481.83692385,0.00016694,2]
[367751947,1750917032328,-507.49199029,0.00016694,2]
[367751948,1750917032337,-568.99285384,0.00016694,2]
[367751949,1750917032347,-446.07440955,0.00016694,2]
[367751950,1750917032356,-464.4007227,0.00016694,2]
[367751951,1750917032365,-460.09748724,0.00016694,2]
[367751952,1750917032375,-497.37564537,0.00016694,2]
[367751953,1750917032384,-460.0,0.00016694,2]
[367751954,1750917032393,-460.0,0.00016694,2]
[367751955,1750917032403,-349.40397743,0.00016694,2]
[367751956,1750917032412,-460.0,0.00016694,2]
[367751957,1750917032421,-460.0,0.00016694,2]
[367751958,1750917032431,-412.70090933,0.00016694,2]
[367751959,1750917032441,-460.0,0.00016694,2]
[367751960,1750917032450,-499.57974935,0.00016695,2]
[367751961,1750917032459,-440.49798575,0.00016695,2]
[367751962,1750917032469,-225.12683683,0.00016695,2]
[367751963,1750917032478,-460.0,0.00016695,2]
[367751964,1750917032487,-430.0,0.00016695,2]
[367751965,1750917032497,-460.0,0.00016695,2]
[367751966,1750917032507,-462.790081,0.00016695,2]
[367751967,1750917032516,-433.74578409,0.00016695,2]
[367751968,1750917032526,-440.0,0.00016695,2]
[367751969,1750917032535,-432.64841526,0.00016695,2]
[367751970,1750917032544,-460.0,0.00016695,2]
[367751971,1750917032554,-460.0,0.00016695,2]
[367751972,1750917032563,-477.7078451,0.00016695,2]
[367751973,1750917032573,-477.73084683,0.00016695,2]
[367751974,1750917032583,-471.96213998,0.00016695,2]
[367751975,1750917032592,-460.0,0.00016695,2]
[367751976,1750917032602,-460.0,0.00016695,2]
[367751977,1750917032611,-460.0,0.00016695,2]
[367751978,1750917032621,-387.81150633,0.00016695,2]
[367751979,1750917032631,-460.0,0.00016695,2]
[367751980,1750917032640,-460.0,0.00016695,2]
[367751981,1750917032650,-460.0,0.00016695,2]
[367751982,1750917032856,-460.0,0.00016695,2]
[367751983,1750917032867,-460.0,0.00016695,2]
[367751984,1750917032877,-460.0,0.00016695,2]
[367751985,1750917032887,-460.0,0.00016695,2]
[367751986,1750917032896,-460.0,0.00016695,2]
[367751987,1750917032905,-460.0,0.00016695,2]
[367751988,1750917032914,-460.0,0.00016695,2]
[367751989,1750917032924,-392.73096833,0.00016695,2]
[367751990,1750917032933,-500.61759519,0.00016695,2]
[367751991,1750917032942,-354.85687479,0.00016695,2]
[367751992,1750917032951,-547.10498581,0.00016695,2]
[367751993,1750917032961,-460.0,0.00016695,2]
[367751994,1750917032970,-460.0,0.00016695,2]
[367751995,1750917032979,-460.0,0.00016695,2]
[367751996,1750917032988,-460.0,0.00016695,2]
[367751997,1750917032997,-225.92,0.00016695,2]
[367751998,1750917033006,-460.0,0.00016695,2]
[367751999,1750917033015,-460.0,0.00016695,2]
[367752000,1750917033024,-417.25846485,0.00016695,2]
[367752001,1750917033033,-460.0,0.00016695,2]
[367752002,1750917033043,-469.41550969,0.00016695,2]
[367752003,1750917033052,-460.0,0.00016695,2]
[367752004,1750917033061,-477.9223269,0.00016695,2]
[367752005,1750917033071,-460.0,0.00016695,2]
[367752006,1750917033080,-460.0,0.00016695,2]
[367752007,1750917033090,-479.40271446,0.00016695,2]
[367752008,1750917033101,-487.85,0.00016695,2]
[367752009,1750917033110,-535.37045237,0.00016695,2]
[367752010,1750917033119,-460.0,0.00016695,2]
[367752011,1750917033129,-460.0,0.00016695,2]
[367752012,1750917033138,-602.78774804,0.00016695,2]
[367752013,1750917033148,-498.6125136,0.00016695,2]
[367752014,1750917033157,-473.95348902,0.00016695,2]
[367752015,1750917033167,-460.0,0.00016695,2]
[367752016,1750917033176,-410.76504406,0.00016695,2]
[367752017,1750917033185,-460.0,0.00016695,2]
[367752018,1750917033196,-545.06509276,0.00016695,2]
[367752019,1750917033206,-460.0,0.00016695,2]
[367752020,1750917033215,-460.0,0.00016695,2]
[367752021,1750917033224,-579.75555739,0.00016695,2]
[367752022,1750917033234,-460.0,0.00016695,2]
[367752023,1750917033245,-460.0,0.00016695,2]
[367752024,1750917033255,-478.18911306,0.00016695,2]
[367752025,1750917033264,-481.12602358,0.00016695,2]
[367752026,1750917033274,-460.0,0.00016695,2]
[367752027,1750917033283,-460.0,0.00016695,2]
[367752028,1750917033293,-460.0,0.00016695,2]
[367752029,1750917033303,-477.84553395,0.00016695,2]
[367752030,1750917033314,-460.0,0.00016695,2]
[367752031,1750917033324,-198.775164,0.00016695,2]
[367752032,1750917033334,-156.56154144,0.00016695,2]
[367752033,1750917033343,-419.75773258,0.00016695,2]
[367752034,1750917033353,-156.00403038,0.00016695,2]
[367752035,1750917033362,-154.94484772,0.00016695,2]
[367752036,1750917033371,-460.0,0.00016695,2]
[367752037,1750917033381,-539.49,0.00016695,2]
[367752038,1750917033390,-476.45581029,0.00016695,2]
[367752039,1750917033400,-183.59298486,0.00016695,2]
[367752040,1750917033410,-460.0,0.00016695,2]
[367752041,1750917033419,-460.0,0.00016695,2]
[367752042,1750917033429,-416.70600265,0.00016695,2]
[367752043,1750917033438,-486.56719486,0.00016695,2]
[367752044,1750917033447,-460.0,0.00016695,2]
[367752045,1750917033457,-515.63884315,0.00016695,2]
[367752046,1750917033466,-460.0,0.00016695,2]
[367752047,1750917033476,-419.22549664,0.00016695,2]
[367752048,1750917033485,-460.0,0.00016695,2]
[367752049,1750917033494,-574.57808278,0.00016695,2]
[367752050,1750917033504,-454.14387227,0.00016696,2]
[367752051,1750917033514,-361.34733992,0.00016696,2]
[367752052,1750917033523,-480.49569921,0.00016696,2]
[367752053,1750917033533,-460.0,0.00016696,2]
[367752054,1750917033542,-239.11198304,0.00016696,2]
[367752055,1750917033552,-286.64189762,0.00016696,2]
[367752056,1750917033561,-468.21890409,0.00016696,2]
[367752057,1750917033571,-376.5313006,0.00016696,2]
[367752058,1750917033581,-432.63142927,0.00016696,2]
[367752059,1750917033590,-449.22919332,0.00016696,2]
[367752060,1750917033600,-460.0,0.00016696,2]
[367752061,1750917033610,-447.87573739,0.00016696,2]
[367752062,1750917033619,-472.62057747,0.00016696,2]
[367752063,1750917033629,-460.0,0.00016696,2]
[367752064,1750917033639,-450.17483727,0.00016696,2]
[367752065,1750917033648,-462.31770329,0.00016696,2]
[367752066,1750917033658,-151.37515572,0.00016696,2]
[367752067,1750917033668,-151.40631103,0.00016696,2]
[367752068,1750917033678,-329.13846385,0.00016696,2]
[367752069,1750917033687,-421.8078106,0.00016696,2]
[367752070,1750917033698,-460.0,0.00016696,2]
[367752071,1750917033707,-213.49498333,0.00016696,2]
[367752072,1750917033717,-151.0,0.00016696,2]
[367752073,1750917033726,-151.84737501,0.00016696,2]
[367752074,1750917033736,-151.0,0.00016696,2]
[367752075,1750917033746,-155.38398917,0.00016696,2]
[367752076,1750917033755,-154.17095997,0.00016696,2]
[367752077,1750917033765,-156.87033698,0.00016696,2]
[367752078,1750917033775,-460.0,0.00016696,2]
[367752079,1750917033784,-460.0,0.00016696,2]
[367752080,1750917033794,-460.0,0.00016696,2]
[367752081,1750917033804,-575.61,0.00016696,2]
[367752082,1750917033813,-369.93628441,0.00016696,2]
[367752083,1750917033823,-455.94,0.00016696,2]
[367752084,1750917033832,-460.0,0.00016696,2]
[367752085,1750917033841,-460.0,0.00016696,2]
[367752086,1750917033850,-460.0,0.00016696,2]
[367752087,1750917033860,-407.31311882,0.00016696,2]
[367752088,1750917033869,-460.0,0.00016696,2]
[367752089,1750917033879,-443.9572966,0.00016696,2]
[367752090,1750917033890,-151.0,0.00016697,2]
[367752091,1750917033900,-151.86772385,0.00016697,2]
[367752092,1750917033910,-154.15276606,0.00016697,2]
[367752093,1750917033919,-154.07651348,0.00016697,2]
[367752094,1750917033929,-151.0,0.00016723,2]
[367752095,1750917033938,-151.0,0.00016724,2]
[367752096,1750917033948,-199.9982052,0.00016751,2]
[367752097,1750917033957,-212.63294003,0.00016752,2]
[367752098,1750917033967,-300.42287018,0.00016968,2]
[367752099,1750917033976,-483.62097006,0.00016968,2]
[367752100,1750917033985,-460.0,0.00016968,2]
[367752101,1750917033994,-460.0,0.00016968,2]
[367752102,1750917034013,-460.0,0.00016968,2]
[367752103,1750917034024,-460.0,0.00016969,2]
[367752104,1750917034034,-374.06239057,0.00016969,2]
[367752105,1750917034044,-473.36895084,0.00016969,2]
[367752106,1750917034053,-538.83700066,0.00016969,2]
[367752107,1750917034063,-460.0,0.00016969,2]
[367752108,1750917034072,-517.78614226,0.00016969,2]
[367752109,1750917034082,-514.42344976,0.00016969,2]
[367752110,1750917034091,-536.94598423,0.00016969,2]
[367752111,1750917034101,-216.06820092,0.00016969,2]
[367752112,1750917034111,-460.0,0.00016969,2]
[367752113,1750917034120,-460.0,0.00016969,2]
[367752114,1750917034130,-374.02357009,0.00016969,2]
[367752115,1750917034139,-460.0,0.00016969,2]
[367752116,1750917034149,-479.79427341,0.00016969,2]
[367752117,1750917034158,-460.0,0.00016969,2]
[367752118,1750917034168,-460.0,0.00016969,2]
[367752119,1750917034179,-460.0,0.00016969,2]
[367752120,1750917034188,-460.0,0.00016969,2]
[367752121,1750917034198,-486.48251408,0.00016969,2]
[367752122,1750917034207,-460.0,0.00016969,2]
[367752123,1750917034217,-487.85,0.00016969,2]
[367752124,1750917034226,-533.49148818,0.00016969,2]
[367752125,1750917034236,-460.0,0.00016969,2]
[367752126,1750917034246,-460.0,0.00016969,2]
[367752127,1750917034255,-460.0,0.00016969,2]
[367752128,1750917034265,-460.0,0.00016969,2]
[367752129,1750917034275,-307.66834305,0.00016969,2]
[367752130,1750917034292,-152.33165695,0.00016969,2]
[367752131,1750917034301,-460.0,0.00016969,2]
[367752132,1750917034311,-474.73564748,0.00016969,2]
[367752133,1750917034320,-460.0,0.00016969,2]
[367752134,1750917034330,-460.0,0.00016969,2]
[367752135,1750917034339,-460.0,0.00016969,2]
[367752136,1750917034349,-315.88111285,0.0001697,2]
[367752137,1750917034358,-499.86759935,0.0001697,2]
[367752138,1750917034368,-460.0,0.0001697,2]
[367752139,1750917034378,-461.10861081,0.0001697,2]
[367752140,1750917034388,-460.0,0.0001697,2]
[367752141,1750917034398,-145.87537255,0.0001697,2]
[367752142,1750917034411,-314.12462745,0.0001697,2]
[367752143,1750917034420,-460.0,0.0001697,2]
[367752144,1750917034430,-460.0,0.0001697,2]
[367752145,1750917034440,-575.61,0.0001697,2]
[367752146,1750917034450,-460.0,0.0001697,2]
[367752147,1750917034459,-478.6084764,0.0001697,2]
[367752148,1750917034469,-460.0,0.0001697,2]
[367752149,1750917034479,-460.0,0.0001697,2]
[367752150,1750917034489,-460.0,0.00017242,2]
[367752151,1750917034499,-571.95922449,0.00017242,2]
[367752152,1750917034508,-460.0,0.00017242,2]
[367752153,1750917034518,-460.0,0.00017243,2]
[367752154,1750917034527,-460.0,0.00017243,2]
[367752155,1750917034537,-460.0,0.00017243,2]
[367752156,1750917034547,-460.0,0.00017243,2]
[367752157,1750917034557,-460.0,0.00017243,2]
[367752158,1750917034567,-460.0,0.00017243,2]
[367752159,1750917034577,-169.08,0.00017243,2]
[367752160,1750917034587,-487.85,0.00017243,2]
[367752161,1750917034596,-460.0,0.00017243,2]
[367752162,1750917034607,-567.37481927,0.00017243,2]
[367752163,1750917034617,-201.85,0.00017243,2]
[367752164,1750917034627,-290.42,0.00017243,2]
[367752165,1750917034636,-460.0,0.00017243,2]
[367752166,1750917034645,-460.0,0.00017243,2]
[367752167,1750917034654,-460.0,0.00017243,2]
[367752168,1750917034664,-460.0,0.00017243,2]
[367752169,1750917034673,-460.0,0.00017244,2]
[367752170,1750917034683,-460.0,0.00017244,2]
[367752171,1750917034693,-229.04252494,0.00017244,2]
[367752184,1750917038084,-460.0,0.00016694,2]
[367752185,1750917038093,-197.55747506,0.00017244,2]
[367752186,1750917038103,-67.19391395,0.00017244,2]
[367752187,1750917038115,-392.80608605,0.00017244,2]
[367752188,1750917038124,-575.61,0.00017244,2]
[367752189,1750917038134,-460.0,0.00017244,2]
[367752190,1750917038143,-460.0,0.00017244,2]
[367752191,1750917038153,-442.60983561,0.00017245,2]
[367752192,1750917038163,-460.0,0.00017516,2]
[367752193,1750917038172,-460.0,0.00017516,2]
[367752194,1750917038181,-264.94137596,0.00017517,2]
[367752195,1750917038190,-460.0,0.00017517,2]
[367752196,1750917038199,-460.0,0.00017517,2]
[367752197,1750917038208,-460.0,0.00017517,2]
[367752198,1750917038218,-460.0,0.00017517,2]
[367752199,1750917038227,-487.85,0.00017517,2]
[367752200,1750917038236,-460.0,0.00017517,2]
[367752201,1750917038246,-475.4635533,0.00017517,2]
[367752202,1750917038260,-451.01914911,0.00017517,2]
[367752203,1750917038271,-8.98085089,0.00017517,2]
[367752204,1750917038281,-460.0,0.00017517,2]
[367752205,1750917038290,-460.0,0.00017517,2]
[367752206,1750917038300,-460.0,0.00017518,2]
[367752207,1750917038309,-460.0,0.00017518,2]
[367752208,1750917038318,-575.61,0.00017518,2]
[367752209,1750917038327,-460.0,0.00017518,2]
[367752210,1750917038337,-460.0,0.0001779,2]
[367752211,1750917038346,-460.0,0.00017791,2]
[367752212,1750917038356,-460.0,0.00017791,2]
[367752213,1750917038366,-460.0,0.00017791,2]
[367752214,1750917038375,-487.85,0.00017791,2]
[367752215,1750917038385,-460.0,0.00017791,2]
[367752216,1750917038394,-460.0,0.00017791,2]
[367752217,1750917038403,-460.0,0.00017791,2]
[367752218,1750917038413,-460.0,0.00017792,2]
[367752219,1750917038422,-460.0,0.00017792,2]
[367752220,1750917038431,-575.61,0.00017792,2]
[367752221,1750917038441,-460.0,0.00017792,2]
[367752222,1750917038450,-430.68981368,0.000179,2]
[367752223,1750917038460,-460.0,0.00018064,2]
[367752224,1750917038469,-460.0,0.00018065,2]
[367752225,1750917038479,-460.0,0.00018065,2]
[367752226,1750917038488,-160.24037983,0.00018065,2]
[367752227,1750917038501,-299.75962017,0.00018065,2]
[367752228,1750917038510,-487.85,0.00018065,2]
[367752229,1750917038519,-221.0825408,0.00018065,2]
[367752230,1750917038531,-238.9174592,0.00018065,2]
[367752231,1750917038541,-460.0,0.00018065,2]
[367752232,1750917038550,-133.32548566,0.00018065,2]
[367752233,1750917038561,-326.67451434,0.00018065,2]
[367752234,1750917038571,-460.0,0.00018066,2]
[367752235,1750917038580,-460.0,0.00018066,2]
[367752236,1750917038590,-575.61,0.00018066,2]
[367752237,1750917038600,-186.73,0.00018066,2]
[367752238,1750917038610,-213.72380786,0.00018165,2]
[367752239,1750917038619,-160.0,0.00018165,2]
[367752240,1750917038629,-230.24506774,0.00018165,2]
[367752241,1750917038638,-12560.17507789,0.00018165,2]
[367752242,1750917038648,-160.0,0.00018165,2]
[367752243,1750917038657,-425.22527846,0.00018165,2]
[367752244,1750917038667,-836.92866116,0.00018165,2]
[367752245,1750917038677,-160.0,0.00018165,2]
[367752246,1750917038686,-846.92323443,0.00018165,2]
[367752247,1750917038696,-430.6898136,0.00018176,2]
[367752248,1750917038706,-420.0,0.00018238,2]
[367752249,1750917038715,-589.96,0.0001833,3]
[367752250,1750917038725,-460.0,0.00018338,2]
[367752251,1750917038735,-460.0,0.00018339,2]
[367752252,1750917038745,-460.0,0.00018339,2]
[367752253,1750917038754,-460.0,0.00018339,2]
[367752254,1750917038763,-487.85,0.00018339,2]
[367752255,1750917038774,-597.64,0.00018339,2]
[367752256,1750917038783,-460.0,0.00018339,2]
[367752257,1750917038792,-460.0,0.00018339,2]
[367752258,1750917038802,-460.0,0.0001834,2]
[367752259,1750917038811,-460.0,0.0001834,2]
[367752260,1750917038820,-575.61,0.0001834,2]
[367752261,1750917038830,-430.6898136,0.00018452,2]
[367752262,1750917038840,-460.0,0.00018612,2]
[367752263,1750917038849,-584.68570493,0.00018613,2]
[367752264,1750917038858,-460.0,0.00018613,2]
[367752265,1750917038868,-460.0,0.00018613,2]
[367752266,1750917038877,-487.85,0.00018613,2]
[367752267,1750917038886,-563.24,0.00018613,2]
[367752268,1750917038895,-460.0,0.00018613,2]
[367752269,1750917038904,-460.0,0.00018614,2]
[367752270,1750917038914,-460.0,0.00018614,2]
[367752271,1750917038923,-575.61,0.00018614,2]
[367752272,1750917038933,-430.6898136,0.00018728,2]
[367752273,1750917038942,-546.47,0.00018886,2]
[367752274,1750917038951,-460.0,0.00018887,2]
[367752275,1750917038960,-460.0,0.00018887,2]
[367752276,1750917038970,-487.85,0.00018887,2]
[367752277,1750917038981,-460.0,0.00018887,2]
[367752278,1750917038991,-460.0,0.00018888,2]
[367752279,1750917039002,-460.0,0.00018888,2]
[367752280,1750917039012,-575.61,0.00018888,2]
[367752281,1750917039021,-366.10009877,0.000189,2]
[367752282,1750917039030,-430.6898136,0.00019003,2]
[367752283,1750917039040,-460.0,0.00019161,2]
[367752284,1750917039049,-269.81,0.00019161,2]
[367752285,1750917039059,-487.85,0.00019161,2]
[367752286,1750917039197,-332.86,0.00019161,2]
[367752287,1750917039208,-460.0,0.00019162,2]
[367752288,1750917039218,-460.0,0.00019162,2]
[367752289,1750917039228,-575.61,0.00019162,2]
[367752290,1750917039238,-160.866837,0.00019178,2]
[367752291,1750917039247,-430.6898136,0.00019279,2]
[367752292,1750917039261,-460.0,0.00019435,2]
[367752293,1750917039272,-487.85,0.00019435,2]
[367752294,1750917039282,-460.0,0.00019436,2]
[367752295,1750917039292,-355.11,0.00019436,2]
[367752296,1750917039302,-575.61,0.00019436,2]
[367752297,1750917039312,-382.96249768,0.00019506,2]
[367752298,1750917039321,-430.6898136,0.00019555,2]
[367752299,1750917039333,-230.0,0.0001959,2]
[367752300,1750917039344,-168.0,0.00019601,2]
[367752301,1750917039354,-424.74396276,0.00019605,2]
[367752302,1750917039369,-457978.06312724,0.00019605,2]
[367752303,1750917039379,-151.78316967,0.00019606,2]
[367752304,1750917039389,-215.66,0.00019606,2]
[367752305,1750917039399,-500.0,0.00019606,2]
[367752306,1750917039409,-500.0,0.00019606,2]
[367752307,1750917039419,-5000.0,0.00019606,2]
[367752308,1750917039428,-500.0,0.00019606,2]
[367752309,1750917039438,-500.0,0.00019606,2]
[367752310,1750917039448,-388.0,0.00019606,2]
[367752311,1750917039458,-500.0,0.00019606,2]
[367752312,1750917039469,-500.0,0.00019606,2]
[367752313,1750917039479,-500.0,0.00019606,2]
[367752314,1750917039490,-500.0,0.00019606,2]
[367752315,1750917039500,-500.0,0.00019606,2]
[367752316,1750917039511,-500.0,0.00019606,2]
[367752317,1750917039521,-500.0,0.00019606,2]
[367752318,1750917039531,-500.0,0.00019606,2]
[367752319,1750917039542,-500.0,0.00019606,2]
[367752320,1750917039552,-207.4,0.00019606,2]
[367752321,1750917039562,-500.0,0.00019606,2]
[367752322,1750917039572,-500.0,0.00019606,2]
[367752323,1750917039582,-500.0,0.00019606,2]
[367752324,1750917039592,-500.0,0.00019606,2]
[367752325,1750917039602,-500.0,0.00019606,2]
[367752326,1750917039612,-171.11124864,0.00019606,2]
[367752327,1750917039623,-500.0,0.00019606,2]
[367752328,1750917039632,-500.0,0.00019606,2]
[367752329,1750917039642,-500.0,0.00019606,2]
[367752330,1750917039651,-500.0,0.00019606,2]
[367752331,1750917039661,-500.0,0.00019606,2]
[367752332,1750917039671,-500.0,0.00019606,2]
[367752333,1750917039680,-500.0,0.00019606,2]
[367752334,1750917039689,-500.0,0.00019606,2]
[367752335,1750917039699,-500.0,0.00019606,2]
[367752336,1750917039709,-500.0,0.00019606,2]
[367752337,1750917039718,-500.0,0.00019606,2]
[367752338,1750917039728,-500.0,0.00019606,2]
[367752339,1750917039738,-500.0,0.00019606,2]
[367752340,1750917039747,-25000.0,0.00019606,2]
[367752341,1750917039757,-17315.50746701,0.00019606,2]
[367752342,1750917039766,-168.0,0.00019622,2]
[367752343,1750917039776,-402.356,0.00019661,2]
[367752344,1750917039786,-230.0,0.00019678,2]
[367752345,1750917039795,-460.0,0.00019709,2]
[367752346,1750917039805,-487.85,0.00019709,2]
[367752347,1750917039815,-460.0,0.0001971,2]
[367752348,1750917039825,-575.61,0.0001971,2]
[367752349,1750917039835,-537.71295305,0.00019716,2]
[367752350,1750917039845,-974.952,0.00019739,2]
[367752351,1750917039856,-2161.0,0.00019739,2]
[367752352,1750917039867,-654.0,0.00019739,2]
[367752353,1750917039876,-236.97,0.00019739,2]
[367752354,1750917039886,-151.069,0.00019739,2]
[367752355,1750917039895,-430.6898136,0.00019831,2]
[367752356,1750917039905,-587.0,0.00019926,2]
[367752357,1750917039915,-466.92,0.00019983,2]
[367752358,1750917039925,-487.85,0.00019983,2]
[367752359,1750917039934,-460.0,0.00019984,2]
[367752360,1750917039943,-575.61,0.00019984,2]
[367752361,1750917039953,-289.568,0.00020103,2]
[367752362,1750917039962,-382.96249764,0.00020105,2]
[367752363,1750917039972,-430.6898136,0.00020107,2]
[367752364,1750917039982,-168.0,0.00020153,2]
[367752365,1750917039991,-5000.0,0.00020154,2]
[367752366,1750917040001,-318.858079,0.00020187,2]
[367752368,1750917040010,-487.85,0.00020257,2]
[367752369,1750917040019,-460.0,0.00020258,2]
[367752370,1750917040028,-575.61,0.00020258,2]
[367752371,1750917040038,-366.50543841,0.00020274,2]
[367752372,1750917040047,-179.9040489,0.00020356,2]
[367752373,1750917040056,-575.0264769,0.00020356,2]
[367752374,1750917040065,-153.0,0.00020356,2]
[367752375,1750917040074,-159.2154015,0.00020356,2]
[367752376,1750917040083,-177.445217,0.00020356,2]
[367752377,1750917040092,-153.0,0.00020356,2]
[367752378,1750917040101,-575.0264769,0.00020356,2]
[367752379,1750917040110,-159.2154015,0.00020356,2]
[367752380,1750917040119,-159.2154015,0.00020356,2]
[367752381,1750917040127,-177.4452169,0.00020356,2]
[367752382,1750917040137,-575.0264769,0.00020356,2]
[367752383,1750917040146,-159.2154015,0.00020356,2]
[367752384,1750917040155,-177.4452169,0.00020356,2]
[367752385,1750917040164,-153.0,0.00020356,2]
[367752386,1750917040173,-575.0264769,0.00020356,2]
[367752387,1750917040182,-159.2154015,0.00020356,2]
[367752388,1750917040191,-575.0264769,0.00020356,2]
[367752389,1750917040200,-177.4452169,0.00020356,2]
[367752390,1750917040209,-159.2154015,0.00020356,2]
[367752391,1750917040218,-177.4452169,0.00020356,2]
[367752392,1750917040227,-575.0264769,0.00020356,2]
[367752393,1750917040236,-153.0,0.00020356,2]
[367752394,1750917040245,-177.4452169,0.00020356,2]
[367752395,1750917040255,-575.0264769,0.00020356,2]